[Event "GCT Superbet Romania 2024"]
[Site "Bucharest"]
[Date "2024.06.28"]
[Round "3.1"]
[White "Gukesh D"]
[Black "Praggnanandhaa R"]
[Result "1/2-1/2"]
[ECO "E04"]
[WhiteElo "2763"]
[BlackElo "2747"]
[Annotator "RC"]
[PlyCount "161"]
[EventDate "2024.06.24"]
[EventType "tourn"]
[EventCountry "ROU"]
[SourceTitle "playchess.com"]
[Source "ChessBase"]
[SourceQuality "1"]
[TimeControl "7200+30"]

1. d4 {[%emt 0:00:04]} Nf6 {[%emt 0:00:44]} 2. c4 {[%emt 0:00:07]} e6 {[%emt 0:00:07]} 3. g3 {[%emt 0:00:06]} d5 {[%emt 0:00:12]} 4. Bg2 {[%emt 0:00:08]} dxc4 {[%emt 0:00:08]} 5. Nf3 {[%emt 0:00:25]} Bb4+ {[%emt 0:00:06]} 6. Bd2 {[%emt 0:00:06]} a5 {[%emt 0:00:06]} 7. a3 {[%emt 0:00:12]} Bxd2+ {[%emt 0:00:21]} 8. Nbxd2 {[%emt 0:02:30]} b5 {[%emt 0:01:01]} 9. b3 {[%emt 0:00:07]} cxb3 {[%emt 0:00:18]} 10. Qxb3 {[%emt 0:00:06]} c6 {[%emt 0:00:28]} 11. O-O {[%emt 0:00:08]} O-O {[%emt 0:00:09]} 12. Qb2 {[%emt 0:00:08]} Nbd7 {[%emt 0:03:56]} 13. Rfc1 {[%emt 0:03:33]} Bb7 {[%emt 0:02:58]} 14. Ne1 {[%emt 0:00:07]} e5 {[%emt 0:03:51]} 15. dxe5 {[%emt 0:18:55]} Nxe5 {[%emt 0:01:42]} 16. Qxe5 {[%emt 0:01:12]} Qxd2 {[%emt 0:00:15]} 17. Rd1 {[%emt 0:01:50]} Qh6 {[%emt 0:01:20]} 18. Qc7 {[%emt 0:01:41]} Rfb8 {[%emt 0:02:58]} 19. Nd3 {[%emt 0:09:12]} Nd5 {[%emt 0:17:19]} 20. Qe5 {[%emt 0:05:38]} Re8 {[%emt 0:07:33]} 21. Qb2 {[%emt 0:03:05]} Qd6 {[%emt 0:06:30]} 22. Rac1 {[%emt 0:01:17]} Qe7 {[%emt 0:03:06]} 23. Nc5 {[%emt 0:13:44]} Bc8 {[%emt 0:03:19]} 24. e3 {[%emt 0:13:34]} b4 {[%emt 0:14:43]} 25. Bxd5 {[%emt 0:03:21]} cxd5 {[%emt 0:18:30]} 26. axb4 {[%emt 0:00:39]} axb4 {[%emt 0:01:57]} 27. Qxb4 {[%emt 0:01:15]} Be6 {[%emt 0:01:37]} 28. Qd4 {[%emt 0:06:49]} Red8 {[%emt 0:05:03]} 29. Nd3 {[%emt 0:01:31]} h6 {[%emt 0:05:48]} 30. Nf4 {[%emt 0:00:23]} Bg4 {[%emt 0:02:51]} 31. Rd2 {[%emt 0:03:03]} Bf3 {[%emt 0:00:18]} 32. Rdc2 {[%emt 0:14:27]} Qd7 {[%emt 0:03:54]} 33. Nd3 {[%emt 0:07:06]} Qh3 {[%emt 0:02:31]} 34. Ne1 {[%emt 0:01:57]} Be4 {[%emt 0:00:03]} 35. Rd2 {[%emt 0:00:25]} Qh5 {[%emt 0:01:22]} 36. Qc5 {[%emt 0:04:34]} Rd7 {[%emt 0:04:22]} 37. Rcd1 {[%emt 0:10:10]} Rda7 {[%emt 0:04:12]} 38. f3 {[%emt 0:02:00]} Ra5 {[%emt 0:04:45]} 39. Qd4 {[%emt 0:00:18]} Bxf3 {[%emt 0:00:33]} 40. Nxf3 {[%emt 0:00:03]} Qxf3 {[%emt 0:00:06]} 41. Qf4 {[%emt 0:00:21]} Qh5 {[%emt 0:00:39]} 42. e4 {[%emt 0:00:31]} dxe4 {[%emt 0:05:55]} 43. Rd8+ {[%emt 0:03:04]} Rxd8 {[%emt 0:00:05]} 44. Rxd8+ {[%emt 0:00:02]} Kh7 {[%emt 0:00:01]} 45. Qxe4+ {[%emt 0:00:08]} g6 {[%emt 0:00:42]} 46. Rd2 {[%emt 0:01:04]} Qh3 {[%emt 0:01:52]} 47. Qe1 {[%emt 0:01:20]} Qc8 {[%emt 0:01:22]} 48. Rf2 {[%emt 0:00:52]} Qc5 {[%emt 0:00:14]} 49. Kg2 {[%emt 0:01:08]} Qc6+ {[%emt 0:00:04]} 50. Kg1 {[%emt 0:00:12]} Qb6 {[%emt 0:00:04]} 51. Kf1 {[%emt 0:00:42]} Qa6+ {[%emt 0:02:49]} 52. Qe2 {[%emt 0:00:21]} Qb7 {[%emt 0:00:07]} 53. Qf3 {[%emt 0:00:35]} Qxf3 {[%emt 0:01:31]} 54. Rxf3 {[%emt 0:00:02]} Rf5 {[%emt 0:00:01]} 55. Rxf5 {[%emt 0:00:06]} gxf5 {[%emt 0:00:03]} 56. Kf2 {[%emt 0:00:35]} Kg6 {[%emt 0:00:02]} 57. Kf3 {[%emt 0:01:03]} Kg5 {[%emt 0:00:23]} 58. h3 {[%emt 0:00:45]} Kf6 {[%emt 0:01:27]} 59. Kf4 {[%emt 0:00:31]} Ke6 {[%emt 0:01:05]} 60. g4 {[%emt 0:00:38]} fxg4 {[%emt 0:00:23]} 61. hxg4 {[%emt 0:00:01]} Kf6 {[%emt 0:00:08]} 62. Kf3 {[%emt 0:00:17]} Ke5 {[%emt 0:00:50]} 63. Ke3 {[%emt 0:00:02]} Kd5 {[%emt 0:00:13]} 64. Kd3 {[%emt 0:00:23]} Kd6 {[%emt 0:00:35]} 65. Kd4 {[%emt 0:00:14]} Ke6 {[%emt 0:00:06]} 66. Ke4 {[%emt 0:00:05]} Kf6 {[%emt 0:00:06]} 67. Kf4 {[%emt 0:00:17]} Kg6 {[%emt 0:00:15]} 68. Kf3 {[%emt 0:00:11]} Kg7 {[%emt 0:00:44]} 69. Ke4 {[%emt 0:00:18]} Kf6 {[%emt 0:00:13]} 70. Kf4 {[%emt 0:00:04]} Kg6 {[%emt 0:00:16]} 71. Kf3 {[%emt 0:00:18]} Kg5 {[%emt 0:00:13]} 72. Kg3 {[%emt 0:00:02]} f6 {[%emt 0:00:24]} 73. Kf3 {[%emt 0:00:09]} Kh4 {[%emt 0:00:03]} 74. Kf4 {[%emt 0:00:03]} Kh3 {[%emt 0:00:06]} 75. Kf3 {[%emt 0:00:02]} Kh2 {[%emt 0:00:04]} 76. Kf2 {[%emt 0:00:03]} Kh3 {[%emt 0:00:07]} 77. Kf3 {[%emt 0:00:03]} Kh4 {[%emt 0:00:03]} 78. Kf4 {[%emt 0:00:03]} h5 {[%emt 0:00:01]} 79. gxh5 {[%emt 0:00:05]} Kxh5 {[%emt 0:00:02]} 80. Kf5 {[%emt 0:00:04]} Kh6 {[%emt 0:00:02]} 81. Kxf6 {[%emt 0:00:04]} 1/2-1/2

[Event "GCT Superbet Romania 2024"]
[Site "Bucharest"]
[Date "2024.06.28"]
[Round "3.2"]
[White "Vachier-Lagrave, Maxime"]
[Black "Firouzja, Alireza"]
[Result "1/2-1/2"]
[ECO "C67"]
[WhiteElo "2732"]
[BlackElo "2737"]
[Annotator "TA"]
[PlyCount "112"]
[EventDate "2024.06.24"]
[EventType "tourn"]
[EventCountry "ROU"]
[SourceTitle "playchess.com"]
[Source "ChessBase"]
[SourceQuality "1"]
[TimeControl "7200+30"]

{[%evp 53,112,100,146,149,161,177,155,171,218,211,228,227,236,219,236,222,231,209,181,69,67,69,65,16,16,0,8,0,98,0,0,0,0,0,0,0,0,0,0,0,0,0,0,0,0,0,0,0,0,0,0,0,0,0,0,0,0,0,0,0,0]} 1. e4 {[%emt 0:00:03]} e5 {[%emt 0:00:04]} 2. Nf3 {[%emt 0:00:05]} Nc6 {[%emt 0:00:04]} 3. Bb5 {[%emt 0:00:02]} Nf6 {[%emt 0:00:07]} 4. O-O {[%emt 0:00:04]} Nxe4 {[%emt 0:00:05]} 5. d4 {[%emt 0:00:03]} Nd6 {[%emt 0:00:08]} 6. Bxc6 {[%emt 0:00:03]} dxc6 {[%emt 0:00:06]} 7. dxe5 {[%emt 0:00:02]} Nf5 {[%emt 0:00:09]} 8. Qxd8+ {[%emt 0:00:03]} Kxd8 {[%emt 0:00:08]} 9. h3 {[%emt 0:00:06]} Bd7 {[%emt 0:00:18] C67: Ruy Lopez: Berlin Defence: 4 0-0 Nxe4.} 10. Rd1 {[%emt 0:00:06]} Be7 {[%emt 0:00:13]} 11. g4 {[%emt 0:00:47]} Nh4 {[%emt 0:00:07]} 12. Nxh4 {[%emt 0:00:03]} Bxh4 {[%emt 0:00:05]} 13. Nd2 {[%emt 0:00:05]} Kc8 {[%emt 0:00:14]} 14. Nf3 {[%emt 0:04:02]} Bd8 {[%emt 0:00:11]} 15. Bg5 {[%emt 0:18:33]} f6 {[%emt 0:00:35]} 16. exf6 {[%emt 0:01:59]} gxf6 {[%emt 0:00:07]} 17. Bh6 {[%emt 0:00:06]} a5 {[%emt 0:00:26]} 18. Rd2 {[%emt 0:08:56]} c5 {[%emt 0:00:57]} 19. Rad1 $146 {[%emt 0:13:32]} ({Predecessor:} 19. Nh4 a4 20. a3 Ra6 21. Rad1 Be6 22. f4 Rb6 23. Ng2 Re8 24. Bg7 Be7 25. Re1 {½-½ Kovac,S (2437)-Pessoa,F (2527) EU-chT12 sf2 email 2021}) 19... Be6 {[%emt 0:00:39]} 20. a3 {[%emt 0:00:16]} Ra6 {[%emt 0:03:29]} 21. Kh2 {[%emt 0:08:12]} Rb6 {[%emt 0:15:32]} 22. Kg3 {[%emt 0:01:55]} Rg8 {[%emt 0:01:09]} 23. Re1 {[%emt 0:14:30]} f5 {[%emt 0:08:58]} 24. g5 {[%emt 0:00:43]} Ba2 {[%emt 0:04:57]} 25. Kf4 {[%emt 0:01:11]} Rxb2 {[%emt 0:01:11]} 26. c4 {[%emt 0:00:12]} Rxd2 {[%emt 0:02:53]} 27. Nxd2 {[%emt 0:00:11]} a4 {[%emt 0:10:04]} (27... b5 $142) 28. Ra1 $1 $16 {[%emt 0:01:26]} Bb3 {[%emt 0:00:03]} 29. Nxb3 $1 {[%emt 0:00:08]} axb3 {[%emt 0:00:02]} 30. Rb1 $1 {[%emt 0:00:09]} Re8 {[%emt 0:00:15]} (30... b5 {keeps fighting.}) 31. Rxb3 $18 {[%emt 0:13:26]} ({Worse is} 31. Kxf5 Re2 $11) 31... Re2 {[%emt 0:08:49] [#]} 32. f3 $1 {[%emt 0:11:20]} ({Weaker is} 32. Kxf5 Rxf2+ 33. Ke6 c6 $11) 32... Rh2 {[%emt 0:00:44]} 33. Kxf5 {[%emt 0:00:36]} Rxh3 {[%emt 0:00:05]} 34. Bg7 {[%emt 0:01:42]} c6 {[%emt 0:04:23]} 35. Be5 {[%emt 0:04:56]} b5 {[%emt 0:06:08]} 36. cxb5 {[%emt 0:07:07]} (36. Kg4 $18 Rh1 37. f4 (37. cxb5 Rg1+ 38. Kf4 Bxg5+ 39. Kf5 cxb5 $14)) 36... c4 $14 {[%emt 0:00:33]} 37. Rb4 {[%emt 0:00:06]} Rxf3+ {[%emt 0:15:54]} 38. Ke4 {[%emt 0:03:56]} (38. Ke6 $14) 38... Rxa3 $11 {[%emt 0:05:52]} 39. bxc6 {[%emt 0:00:06]} Bc7 $1 {[%emt 0:00:34]} 40. Rxc4 {[%emt 0:00:09]} Rh3 {[%emt 0:09:29] [#]} (40... Bxe5 $1 $11 {keeps the balance.} 41. Kxe5 Rh3) 41. Rc5 {[%emt 0:06:32]} (41. Bd4 $1 $16) 41... Bxe5 $11 {[%emt 0:06:44]} 42. Rxe5 {[%emt 0:02:01]} Kc7 {[%emt 0:00:15]} 43. Re6 {[%emt 0:00:57]} Rh1 {[%emt 0:00:57]} 44. Ke5 {[%emt 0:03:28]} Rh2 {[%emt 0:01:09]} 45. Kf6 {[%emt 0:00:46]} Rh5 {[%emt 0:00:45]} 46. Kf5 {[%emt 0:00:47]} Rh1 {[%emt 0:00:32]} 47. Rf6 {[%emt 0:00:38]} Rh2 {[%emt 0:01:04]} 48. Ke6 {[%emt 0:01:49]} Rh5 {[%emt 0:00:56]} 49. Rf7+ {[%emt 0:00:22]} Kxc6 {[%emt 0:00:07]} 50. Kf6 $1 {[%emt 0:00:03]} Kd6 {[%emt 0:01:02]} 51. Ra7 {[%emt 0:00:12]} Kc6 {[%emt 0:02:08]} 52. Ra6+ {[%emt 0:00:15]} Kd7 {[%emt 0:01:12]} 53. Ra7+ {[%emt 0:00:04]} Kd6 {[%emt 0:00:07]} 54. Ra6+ {[%emt 0:00:03]} Kd7 {[%emt 0:00:04]} 55. Ra7+ {[%emt 0:00:02]} Kd6 {[%emt 0:00:25]} 56. Ra6+ {[%emt 0:00:04]} Kd7 {[%emt 0:00:05]} 1/2-1/2

[Event "GCT Superbet Romania 2024"]
[Site "Bucharest"]
[Date "2024.06.28"]
[Round "3.3"]
[White "Giri, Anish"]
[Black "Nepomniachtchi, Ian"]
[Result "1/2-1/2"]
[ECO "E06"]
[WhiteElo "2745"]
[BlackElo "2770"]
[Annotator "TA"]
[PlyCount "81"]
[EventDate "2024.06.24"]
[EventType "tourn"]
[EventCountry "ROU"]
[SourceTitle "playchess.com"]
[Source "ChessBase"]
[SourceQuality "1"]
[TimeControl "7200+30"]

{[%evp 18,81,10,14,20,3,9,13,30,41,41,4,12,7,20,6,12,16,37,22,17,20,16,23,20,10,11,12,11,12,0,0,0,0,0,0,0,0,0,0,0,0,0,0,0,0,0,0,0,0,0,0,0,0,0,0,0,0,0,0,0,0,0,0,0,0]} 1. Nf3 {[%emt 0:00:03]} Nf6 {[%emt 0:00:25]} 2. g3 {[%emt 0:00:17]} d5 {[%emt 0:00:09][%cal Bd7d5,Bd5c4][%mdl 32]} 3. Bg2 {[%emt 0:00:05]} e6 {[%emt 0:00:07]} 4. d4 {[%emt 0:00:07]} Be7 {[%emt 0:00:06]} 5. c4 {[%emt 0:00:03]} O-O {[%emt 0:00:08]} 6. Nc3 {[%emt 0:00:02]} dxc4 {[%emt 0:00:15]} 7. Ne5 {[%emt 0:00:06]} c5 {[%emt 0:00:05]} 8. dxc5 {[%emt 0:00:23]} Qxd1+ {[%emt 0:00:07]} 9. Nxd1 {[%emt 0:00:06]} Bxc5 {[%emt 0:00:05]} 10. O-O {[%emt 0:01:05]} Nd5 {[%emt 0:00:20]} 11. Nxc4 {[%emt 0:00:05]} Nc6 {[%emt 0:01:08]} 12. Nc3 {[%emt 0:00:16]} Nd4 {[%emt 0:06:57]} 13. Bd2 {[%emt 0:03:39]} Bd7 {[%emt 0:01:25]} 14. Rab1 {[%emt 0:11:08]} Bc6 {[%emt 0:05:47]} 15. Rfe1 {[%emt 0:22:06]} Nf6 {[%emt 0:10:37]} 16. Red1 {[%emt 0:25:48]} Bxg2 {[%emt 0:02:46]} 17. Kxg2 {[%emt 0:00:04] Strongly threatening Be3.} Rac8 {[%emt 0:00:12][%cal Ba8c8,Bc8c4,Bc4b4][%mdl 32]} 18. Bf4 {[%emt 0:04:01]} Nf5 {[%emt 0:03:52]} 19. e4 {[%emt 0:09:39]} Bb4 {[%emt 0:00:54]} 20. exf5 {[%emt 0:00:52]} Rxc4 {[%emt 0:00:05]} 21. fxe6 {[%emt 0:00:11] The position is equal.} fxe6 {[%emt 0:00:08]} 22. Bd6 {[%emt 0:00:17]} Rfc8 {[%emt 0:02:23]} 23. Bxb4 {[%emt 0:06:15]} Rxb4 {[%emt 0:00:35]} 24. Rd3 {[%emt 0:00:15]} e5 {[%emt 0:02:35]} 25. Nd5 {[%emt 0:02:15]} Nxd5 {[%emt 0:00:05]} 26. Rxd5 {[%emt 0:00:02]} Rc2 {[%emt 0:00:07]} 27. Rxe5 {[%emt 0:00:27]} Rbxb2 {[%emt 0:00:05]} 28. Rxb2 {[%emt 0:00:03]} Rxb2 $11 {[%emt 0:00:06][%mdl 4096] Endgame. KR-KR} 29. Re7 {[%emt 0:00:06]} a5 {[%emt 0:00:22][%cal Og8f8]} 30. a4 {[%emt 0:00:53]} Rb4 {[%emt 0:00:27]} 31. f4 {[%emt 0:01:19]} b6 {[%emt 0:00:06]} 32. Rb7 {[%emt 0:00:22]} Rxa4 {[%emt 0:00:05] And now ...Rb4 would win.} 33. Rxb6 {[%emt 0:00:03]} Ra2+ {[%emt 0:00:04]} 34. Kh3 {[%emt 0:00:17]} Kf7 {[%emt 0:00:04]} 35. Ra6 {[%emt 0:00:11]} h6 {[%emt 0:00:16]} 36. Kg4 {[%emt 0:01:33]} Rxh2 {[%emt 0:00:07]} 37. Ra7+ {[%emt 0:00:01]} Kf6 {[%emt 0:00:06]} 38. Ra6+ {[%emt 0:00:02]} Kf7 {[%emt 0:00:03]} 39. Ra7+ {[%emt 0:00:01]} Kf6 {[%emt 0:00:06]} 40. Ra6+ {[%emt 0:00:01]} Kf7 {[%emt 0:00:14]} 41. Ra7+ {[%emt 0:00:01] Weighted Error Value: White=0.04 (flawless) /Black=0.02 (flawless) .  Inaccurate:     	White=1     	---        OK:         	White=15    	Black=18} 1/2-1/2

[Event "GCT Superbet Romania 2024"]
[Site "Bucharest"]
[Date "2024.06.28"]
[Round "3.4"]
[White "Abdusattorov, Nodirbek"]
[Black "Caruana, Fabiano"]
[Result "1/2-1/2"]
[ECO "A46"]
[WhiteElo "2766"]
[BlackElo "2805"]
[Annotator "TA"]
[PlyCount "54"]
[EventDate "2024.06.24"]
[EventType "tourn"]
[EventCountry "ROU"]
[SourceTitle "playchess.com"]
[Source "ChessBase"]
[SourceQuality "1"]
[TimeControl "7200+30"]

{[%evp 9,54,11,24,19,22,19,23,14,20,0,0,0,22,-6,-6,0,0,-24,-34,-33,-38,-33,-41,-30,-27,-15,-14,-14,-12,-35,-33,-26,-47,-33,0,0,0,0,0,-10,0,0,0,-23,0,-19,0]} 1. d4 {[%emt 0:00:05]} Nf6 {[%emt 0:00:04]} 2. Nf3 {[%emt 0:00:09]} e6 {[%emt 0:00:08]} 3. Bf4 {[%emt 0:00:20]} Be7 {[%emt 0:00:34]} 4. e3 {[%emt 0:03:15]} Nh5 {[%emt 0:00:14]} 5. Bg3 {[%emt 0:00:36]} d6 {[%emt 0:01:54]} 6. c4 {[%emt 0:02:44]} Nd7 {[%emt 0:06:41]} 7. Nc3 {[%emt 0:00:47]} O-O {[%emt 0:00:36]} 8. Qc2 {[%emt 0:02:36] White has an edge.} g6 {[%emt 0:03:42]} 9. O-O-O {[%emt 0:02:48]} a6 {[%emt 0:28:58]} 10. Kb1 {[%emt 0:17:01]} b5 {[%emt 0:22:39]} 11. cxb5 {[%emt 0:08:45]} axb5 {[%emt 0:00:42]} 12. Bxb5 {[%emt 0:00:06]} Nb6 {[%emt 0:01:13]} 13. d5 {[%emt 0:04:13]} Nxd5 {[%emt 0:11:09]} 14. Nxd5 {[%emt 0:08:49]} exd5 {[%emt 0:00:03]} 15. Nd4 $1 {[%emt 0:00:14]} c5 {[%emt 0:08:42]} 16. Nc6 {[%emt 0:00:52][%csl LRd5,LRd8]} Qc7 {[%emt 0:00:39] [#] White must now prevent ...Bf5.} 17. Rxd5 {[%emt 0:01:14] Nxe7+ would now be deadly.} Nxg3 {[%emt 0:03:21]} 18. hxg3 {[%emt 0:00:02]} (18. fxg3 Be6 19. e4 Rfc8 20. Nxe7+ Qxe7 $14) ({But not} 18. Nxe7+ Qxe7 19. hxg3 (19. fxg3 Be6 $17) 19... Bb7 $15) 18... Bb7 {[%emt 0:00:27]} 19. Nxe7+ {[%emt 0:20:45]} Qxe7 {[%emt 0:00:27]} 20. Rhd1 {[%emt 0:01:22]} Bxd5 {[%emt 0:01:25]} 21. Rxd5 {[%emt 0:00:05]} Rfb8 {[%emt 0:12:00]} 22. a4 {[%emt 0:02:02]} Rb6 {[%emt 0:00:32]} 23. e4 {[%emt 0:04:52]} Qb7 {[%emt 0:03:46]} 24. Rd2 {[%emt 0:03:41]} Qe7 {[%emt 0:10:04]} 25. Rd5 {[%emt 0:00:42]} Qb7 {[%emt 0:00:04]} 26. Rd2 {[%emt 0:00:05]} Qe7 {[%emt 0:00:03]} 27. Rd5 {[%emt 0:00:09]} Qb7 {[%emt 0:00:49] Weighted Error Value: White=0.03 (flawless) /Black=0.05 (flawless) .  Inaccurate:     	---       	Black=1      OK:         	White=10    	Black=6      Best:        	White=1     	Black=1      Strong:       	White=1     	---} 1/2-1/2

[Event "GCT Superbet Romania 2024"]
[Site "Bucharest"]
[Date "2024.06.28"]
[Round "3.5"]
[White "So, Wesley"]
[Black "Deac, Bogdan-Daniel"]
[Result "1/2-1/2"]
[ECO "D73"]
[WhiteElo "2757"]
[BlackElo "2680"]
[Annotator "TA"]
[PlyCount "135"]
[EventDate "2024.06.24"]
[EventType "tourn"]
[EventCountry "ROU"]
[SourceTitle "playchess.com"]
[Source "ChessBase"]
[SourceQuality "1"]
[TimeControl "7200+30"]

{[%evp 46,135,0,0,0,0,0,0,0,0,0,0,0,0,0,0,0,0,0,0,0,0,0,0,0,0,0,0,0,0,0,0,0,0,0,0,0,0,0,0,0,0,0,0,0,0,0,0,0,0,74,74,74,74,74,74,74,74,74,74,74,0,0,0,0,0,61,0,0,0,0,0,0,0,0,0,0,0,0,0,0,0,0,0,0,0,0,0,0,0,0,0]} 1. Nf3 {[%emt 0:00:10]} d5 {[%emt 0:00:07]} 2. g3 {[%emt 0:00:05]} g6 {[%emt 0:04:16]} 3. Bg2 {[%emt 0:02:42]} Bg7 {[%emt 0:00:30]} 4. d4 {[%emt 0:00:28]} Nf6 {[%emt 0:00:04]} 5. c4 {[%emt 0:00:05]} dxc4 {[%emt 0:09:30]} 6. Na3 {[%emt 0:03:57]} c5 {[%emt 0:08:04]} 7. O-O {[%emt 0:03:57]} Nc6 {[%emt 0:20:08] D73: Fianchetto Grünfeld: 5 Nf3 .} 8. dxc5 {[%emt 0:15:34]} Qxd1 {[%emt 0:17:49]} 9. Rxd1 {[%emt 0:00:05]} Be6 $146 {[%emt 0:00:10]} ({Predecessor:} 9... Ne4 10. Nxc4 Nxc5 11. Be3 Be6 12. Nce5 Nxe5 13. Nxe5 Bxe5 14. Bxc5 Rc8 15. Bxa7 Rc2 16. Bxb7 O-O 17. Bd4 {½-½ Bok,B (2598)-Aravindh,C (2566) London Classic op 8th 2016 (6)}) 10. Be3 {[%emt 0:11:57]} Nd7 {[%emt 0:03:15]} 11. Nd4 {[%emt 0:06:02]} Nxd4 {[%emt 0:03:41]} 12. Bxd4 {[%emt 0:00:55]} Bxd4 {[%emt 0:00:50]} 13. Rxd4 {[%emt 0:00:02]} O-O-O {[%emt 0:00:36]} 14. Nxc4 {[%emt 0:20:42]} Nxc5 {[%emt 0:01:34]} 15. Rxd8+ {[%emt 0:00:04]} Rxd8 {[%emt 0:00:06]} 16. Na5 {[%emt 0:00:08]} Rd7 {[%emt 0:03:29]} 17. Rc1 {[%emt 0:00:21]} Kb8 {[%emt 0:00:46]} 18. b3 {[%emt 0:04:57]} Na6 {[%emt 0:19:05]} 19. a3 {[%emt 0:02:03]} Bd5 {[%emt 0:04:00]} 20. Rd1 {[%emt 0:22:02]} Nc7 {[%emt 0:02:57]} 21. f4 {[%emt 0:02:10]} Kc8 {[%emt 0:07:04]} 22. e4 {[%emt 0:06:12]} b6 {[%emt 0:07:05]} 23. exd5 {[%emt 0:09:35]} bxa5 {[%emt 0:00:01]} 24. Rc1 {[%emt 0:01:03]} Rd6 {[%emt 0:00:06]} 25. Rc5 {[%emt 0:01:34]} Rb6 {[%emt 0:00:49]} 26. Rxa5 {[%emt 0:02:24]} Rxb3 {[%emt 0:00:02]} 27. Rxa7 {[%emt 0:00:03]} Rb1+ {[%emt 0:00:08]} 28. Kf2 {[%emt 0:00:05]} Rb2+ {[%emt 0:00:11]} 29. Kg1 {[%emt 0:01:19]} Rb1+ {[%emt 0:00:08]} 30. Bf1 {[%emt 0:01:38]} Nxd5 {[%emt 0:00:55]} 31. Kf2 {[%emt 0:00:06]} Rb2+ {[%emt 0:02:03]} 32. Kf3 {[%emt 0:00:28]} Nc7 {[%emt 0:02:47]} 33. Be2 {[%emt 0:04:59]} h5 {[%emt 0:04:31]} 34. Ra4 {[%emt 0:01:10]} e6 {[%emt 0:02:44]} 35. Rb4 {[%emt 0:02:00]} Ra2 {[%emt 0:00:21]} 36. Rb3 {[%emt 0:00:03]} Nd5 {[%emt 0:02:10]} 37. h4 {[%emt 0:00:32]} Kc7 {[%emt 0:01:40]} 38. Bc4 {[%emt 0:00:08]} Rc2 {[%emt 0:00:58]} 39. Bd3 {[%emt 0:00:05]} Ra2 {[%emt 0:00:49]} 40. Bc4 {[%emt 0:00:53]} Rc2 {[%emt 0:00:08]} 41. Bd3 {[%emt 0:00:55]} Ra2 {[%emt 0:00:08]} 42. Ke4 {[%emt 0:01:12]} Kd6 {[%emt 0:04:07]} 43. Kd4 {[%emt 0:00:08]} Rd2 {[%emt 0:01:06]} 44. Kc4 {[%emt 0:01:06]} Kc6 {[%emt 0:00:56]} 45. Be4 {[%emt 0:02:35]} Re2 {[%emt 0:00:21]} 46. Bf3 {[%emt 0:00:25]} Re1 {[%emt 0:00:15]} 47. Kd4 {[%emt 0:01:03]} Kd6 {[%emt 0:00:56] [#]} (47... Rg1 $11) 48. Bxd5 $1 $16 {[%emt 0:03:21]} exd5 {[%emt 0:00:01]} 49. Rb6+ {[%emt 0:00:04]} Ke7 {[%emt 0:00:26]} 50. Kxd5 {[%emt 0:00:03]} Re3 {[%emt 0:00:07]} 51. a4 {[%emt 0:00:01]} Ra3 {[%emt 0:00:06]} 52. Rb4 {[%emt 0:00:27]} Rxg3 {[%emt 0:00:13]} 53. a5 {[%emt 0:00:57]} (53. Kc5 $16) 53... Ra3 $11 {[%emt 0:01:15]} 54. Rb5 {[%emt 0:00:01]} Ra4 $1 {[%emt 0:00:49]} 55. Kc5 {[%emt 0:00:03]} Kd7 {[%emt 0:00:57]} (55... Kd8 $11) 56. Kb6 {[%emt 0:02:47]} (56. Rb7+ $1 $14 Kc8 57. Ra7) 56... Kc8 $1 $11 {[%emt 0:00:18]} 57. a6 {[%emt 0:00:16]} Kb8 $1 {[%emt 0:00:22]} 58. f5 (58. Re5 $5 Rb4+ $8 59. Ka5 Rxf4 60. Re8+ Ka7 61. Re7+ Ka8 62. Kb5 $11) 58... Rxh4 59. Re5 {[%emt 0:00:52]} Rb4+ {[%emt 0:00:57]} 60. Ka5 {[%emt 0:00:02]} Rf4 {[%emt 0:00:20]} 61. Re8+ {[%emt 0:00:30]} Ka7 $1 62. Re7+ {[%emt 0:00:14]} Ka8 {[%emt 0:01:04]} 63. Re8+ {[%emt 0:01:07]} Ka7 {[%emt 0:00:00]} 64. Re7+ {[%emt 0:00:02]} Ka8 {[%emt 0:00:00]} 65. Re8+ {[%emt 0:00:03]} Ka7 {[%emt 0:00:00]} 66. Re7+ {[%emt 0:00:02]} Ka8 {[%emt 0:00:00]} 67. Re8+ {[%emt 0:00:02]} Ka7 {[%emt 0:00:00]} 68. Re7+ {[%emt 0:00:04]} 1/2-1/2